[Event "Baku Open 2024"]
[Site "Baku"]
[Date "2024.07.04"]
[Round "6.2"]
[White "Asadli, Vugar"]
[Black "Narayanan S L"]
[Result "0-1"]
[ECO "B67"]
[WhiteElo "2560"]
[BlackElo "2668"]
[Annotator "TA"]
[PlyCount "49"]
[EventDate "2024.06.29"]
[EventType "swiss"]
[EventCountry "AZE"]
[SourceTitle "playchess.com"]
[Source "ChessBase"]
[SourceQuality "1"]
[TimeControl "5400+30"]

{[%evp 18,49,22,24,24,21,33,16,21,-8,28,39,45,-23,-11,-37,-13,0,0,0,0,0,0,-58,-52,-53,-54,-47,-42,-75,-72,-1637,-1614,-1470]} 1. e4 {[%emt 0:00:07]} c5 {[%emt 0:00:06]} 2. Nf3 {[%emt 0:00:06]} d6 {[%emt 0:00:12]} 3. d4 {[%emt 0:00:05]} cxd4 {[%emt 0:00:05]} 4. Nxd4 {[%emt 0:00:04]} Nf6 {[%emt 0:00:08]} 5. Nc3 {[%emt 0:00:06]} Nc6 {[%emt 0:00:08]} 6. Bg5 {[%emt 0:04:41]} Bd7 {[%emt 0:00:09]} 7. Qd2 {[%emt 0:01:20]} a6 {[%emt 0:00:17]} 8. O-O-O {[%emt 0:00:32]} e6 {[%emt 0:00:13]} 9. Kb1 {[%emt 0:01:26]} Be7 {[%emt 0:03:45]} 10. f3 {[%emt 0:03:13]} Nxd4 {[%emt 0:07:50]} 11. Qxd4 {[%emt 0:00:04]} Qc7 {[%emt 0:00:14]} 12. Qd2 {[%emt 0:04:13]} b5 {[%emt 0:05:30] The position is equal.} 13. g4 {[%emt 0:10:10]} b4 {[%emt 0:09:34]} 14. Ne2 {[%emt 0:00:48][%cal Oe2g3]} a5 {[%emt 0:00:23]} 15. Nd4 {[%emt 0:06:47]} ({White should play} 15. Bf4 $14) 15... O-O $11 {[%emt 0:06:52]} 16. Be3 {[%emt 0:01:42]} Rfc8 {[%emt 0:21:25]} 17. g5 {[%emt 0:02:41]} Nh5 {[%emt 0:01:01]} 18. Nb5 {[%emt 0:10:08]} Bxb5 {[%emt 0:00:18]} 19. Bxb5 {[%emt 0:02:35]} a4 {[%emt 0:00:23]} 20. Rhf1 {[%emt 0:10:49]} (20. Bd3 $11) 20... Ra5 $1 $15 {[%emt 0:13:55]} 21. Be2 {[%emt 0:04:57][%cal Of3f4]} a3 {[%emt 0:03:24] Threatens to win with ...axb2.} 22. b3 {[%emt 0:04:59][%cal Of3f4] [#]} Bxg5 $1 {[%emt 0:10:17]} 23. Bxg5 {[%emt 0:03:35]} (23. f4 Bh6) 23... Rxg5 {[%emt 0:00:05]} 24. Ba6 $2 {[%emt 0:00:10][%mdl 8192] [#]} (24. Qxg5 $2 {leads to mate.} Qxc2+ 25. Ka1 Qb2#) (24. Bc4 $17 h6 25. f4) 24... Rg2 $3 $19 {[%emt 0:00:41][%mdl 512]} 25. Bc4 {[%emt 0:27:42] Weighted Error Value: White=0.68/Black=0.05 (flawless) .  Loses game:     	White=1     	---        Mistake:       	White=2     	---        Inaccurate:     	White=3     	Black=1      OK:         	White=5     	Black=6      Strong:       	---       	Black=1      Brilliant:      	---       	Black=1} (25. c4 bxc3) 0-1

[Event "Baku Open 2024"]
[Site "Baku"]
[Date "2024.07.04"]
[Round "6.3"]
[White "Samadov, Read"]
[Black "Mamedov, Rauf"]
[Result "1/2-1/2"]
[ECO "D17"]
[WhiteElo "2503"]
[BlackElo "2651"]
[Annotator "TA"]
[PlyCount "33"]
[EventDate "2024.06.29"]
[EventType "swiss"]
[EventCountry "AZE"]
[SourceTitle "playchess.com"]
[Source "ChessBase"]
[SourceQuality "1"]
[TimeControl "5400+30"]

{[%evp 13,33,2,33,31,37,37,44,28,33,20,36,37,38,38,30,37,25,30,31,29,39,19]} 1. d4 {[%emt 0:00:04]} d5 {[%emt 0:00:06]} 2. c4 {[%emt 0:00:10]} c6 {[%emt 0:00:04]} 3. Nf3 {[%emt 0:00:21]} Nf6 {[%emt 0:00:05]} 4. Nc3 {[%emt 0:00:09]} dxc4 {[%emt 0:00:04]} 5. a4 {[%emt 0:00:15]} Bf5 {[%emt 0:00:04]} 6. Ne5 {[%emt 0:00:16]} Nbd7 {[%emt 0:00:04]} 7. Nxc4 {[%emt 0:00:11]} Nb6 {[%emt 0:00:03]} 8. e3 {[%emt 0:03:31]} Nxc4 {[%emt 0:06:30]} 9. Bxc4 {[%emt 0:00:08]} e6 {[%emt 0:00:03]} 10. a5 {[%emt 0:05:57]} Be7 {[%emt 0:13:03]} 11. O-O {[%emt 0:03:28]} O-O {[%emt 0:01:32]} 12. f3 {[%emt 0:07:22]} b5 {[%emt 0:13:30]} 13. axb6 {[%emt 0:04:11]} axb6 {[%emt 0:00:04]} 14. Rxa8 {[%emt 0:00:36]} Qxa8 {[%emt 0:00:04]} 15. e4 {[%emt 0:02:29]} Bg6 {[%emt 0:00:04]} 16. Be3 {[%emt 0:02:51]} Rd8 {[%emt 0:04:52]} 17. Qa1 {[%emt 0:12:27] Weighted Error Value: White=0.04 (flawless) /Black=0.10 (very precise) .  OK:         	White=4     	Black=2} (17. Qb3 $5) 1/2-1/2

[Event "Baku Open 2024"]
[Site "Baku"]
[Date "2024.07.04"]
[Round "6.4"]
[White "Jubin Jimmy"]
[Black "Puranik, Abhimanyu"]
[Result "0-1"]
[ECO "A13"]
[WhiteElo "2452"]
[BlackElo "2632"]
[Annotator "RC"]
[PlyCount "112"]
[EventDate "2024.06.29"]
[EventType "swiss"]
[EventCountry "AZE"]
[SourceTitle "playchess.com"]
[Source "ChessBase"]
[SourceQuality "1"]
[TimeControl "5400+30"]

1. c4 {[%emt 0:00:10]} e6 {[%emt 0:02:01]} 2. g3 {[%emt 0:00:21]} d5 {[%emt 0:00:11]} 3. Bg2 {[%emt 0:00:27]} d4 {[%emt 0:02:04]} 4. Nf3 {[%emt 0:02:24]} c5 {[%emt 0:00:15]} 5. O-O {[%emt 0:02:28]} Nc6 {[%emt 0:01:31]} 6. e3 {[%emt 0:01:21]} Nf6 {[%emt 0:05:36]} 7. exd4 {[%emt 0:01:25]} cxd4 {[%emt 0:00:06]} 8. d3 {[%emt 0:00:06]} h6 {[%emt 0:00:26]} 9. Bf4 {[%emt 0:06:22]} g5 {[%emt 0:07:46]} 10. Bd2 {[%emt 0:06:12]} Nd7 {[%emt 0:03:13]} 11. h3 {[%emt 0:08:12]} a5 {[%emt 0:02:03]} 12. Na3 {[%emt 0:02:06]} Nc5 {[%emt 0:01:54]} 13. Qe2 {[%emt 0:07:40]} Bg7 {[%emt 0:01:24]} 14. Nb5 {[%emt 0:09:19]} O-O {[%emt 0:00:30]} 15. a3 {[%emt 0:03:26]} Nb3 {[%emt 0:05:41]} 16. Rad1 {[%emt 0:03:02]} e5 {[%emt 0:02:18]} 17. Bc1 {[%emt 0:05:10]} Be6 {[%emt 0:08:26]} 18. Nd2 {[%emt 0:04:27]} Nxd2 {[%emt 0:05:31]} 19. Bxd2 {[%emt 0:00:43]} Qd7 {[%emt 0:49:04]} 20. f4 {[%emt 0:06:59]} exf4 {[%emt 0:00:00]} 21. gxf4 {[%emt 0:00:07]} g4 {[%emt 0:00:00]} 22. hxg4 {[%emt 0:03:21]} Bxg4 {[%emt 0:00:00]} 23. Bf3 {[%emt 0:00:04]} Bh3 {[%emt 0:00:00]} 24. Rfe1 {[%emt 0:05:28]} Rae8 {[%emt 0:00:00]} 25. Qf2 {[%emt 0:01:27]} Bf5 {[%emt 0:00:00]} 26. Qf1 {[%emt 0:02:44]} Kh7 {[%emt 0:00:00]} 27. c5 {[%emt 0:04:32]} Rxe1 {[%emt 0:00:00]} 28. Rxe1 {[%emt 0:00:37]} Rg8 {[%emt 0:00:00]} 29. Kh2 {[%emt 0:02:14]} Bf8 {[%emt 0:00:00]} 30. Nd6 {[%emt 0:02:13]} Bxd6 {[%emt 0:00:00]} 31. cxd6 {[%emt 0:00:03]} Qd8 {[%emt 0:00:00]} 32. Qf2 {[%emt 0:00:48]} Qxd6 {[%emt 0:00:00]} 33. Qh4 {[%emt 0:04:01]} Bxd3 {[%emt 0:00:00]} 34. Qh3 {[%emt 0:01:00]} Bc2 {[%emt 0:00:33]} 35. Kh1 {[%emt 0:02:33]} Qg6 {[%emt 0:02:41]} 36. Qh2 {[%emt 0:01:44]} Bf5 {[%emt 0:00:43]} 37. Rg1 {[%emt 0:01:43]} Qe6 {[%emt 0:01:06]} 38. Rxg8 {[%emt 0:00:58]} Kxg8 {[%emt 0:00:02]} 39. Kg1 {[%emt 0:00:55]} a4 {[%emt 0:00:57]} 40. Qf2 {[%emt 0:00:50]} Qg6+ {[%emt 0:00:41]} 41. Qg2 {[%emt 0:00:29]} Kf8 {[%emt 0:00:53]} 42. Bd1 {[%emt 0:00:22]} b5 {[%emt 0:01:36]} 43. b3 {[%emt 0:00:42]} Qxg2+ {[%emt 0:01:05]} 44. Kxg2 {[%emt 0:00:02]} b4 {[%emt 0:00:38]} 45. bxa4 {[%emt 0:00:26]} bxa3 {[%emt 0:00:05]} 46. Bc1 {[%emt 0:00:25]} a2 {[%emt 0:00:05]} 47. Bb2 {[%emt 0:00:04]} Ke7 {[%emt 0:01:16]} 48. Kf2 {[%emt 0:01:24]} Kd6 {[%emt 0:00:23]} 49. Bf3 {[%emt 0:00:35]} d3 {[%emt 0:00:30]} 50. Bh5 {[%emt 0:00:27]} Bg6 {[%emt 0:01:20]} 51. Bd1 {[%emt 0:00:44]} Na5 {[%emt 0:00:15]} 52. Bc3 {[%emt 0:00:28]} Kc5 {[%emt 0:00:29]} 53. Kg3 {[%emt 0:00:33]} Kc4 {[%emt 0:00:30]} 54. Bf6 {[%emt 0:00:09]} Nb3 {[%emt 0:00:41]} 55. Kg4 {[%emt 0:00:21]} Be4 {[%emt 0:00:07]} 56. Kh5 {[%emt 0:00:25]} Nd4 {[%emt 0:00:13]} 0-1

[Event "Baku Open 2024"]
[Site "Baku"]
[Date "2024.07.04"]
[Round "6.5"]
[White "Suleymanli, Aydin"]
[Black "Abasov, Nijat"]
[Result "1/2-1/2"]
[ECO "C43"]
[WhiteElo "2626"]
[BlackElo "2621"]
[Annotator "TA"]
[PlyCount "63"]
[EventDate "2024.06.29"]
[EventType "swiss"]
[EventCountry "AZE"]
[SourceTitle "playchess.com"]
[Source "ChessBase"]
[SourceQuality "1"]
[TimeControl "5400+30"]

{[%evp 14,63,0,0,0,0,0,0,0,0,12,22,29,25,23,25,22,18,27,13,13,15,19,14,20,0,0,0,0,0,0,0,23,21,22,16,4,5,7,0,0,0,0,0,0,0,0,0,0,0,0,-9]} 1. e4 {[%emt 0:00:02]} e5 {[%emt 0:04:44]} 2. Nf3 {[%emt 0:00:08]} Nf6 {[%emt 0:00:06]} 3. d4 {[%emt 0:00:13]} Nxe4 {[%emt 0:00:15]} 4. Bd3 {[%emt 0:00:14]} d5 {[%emt 0:00:06]} 5. Nxe5 {[%emt 0:00:10]} Nd7 {[%emt 0:00:04]} 6. Nc3 {[%emt 0:00:10]} Nxc3 {[%emt 0:00:31]} 7. bxc3 {[%emt 0:00:04]} Nxe5 {[%emt 0:00:07]} 8. dxe5 {[%emt 0:00:03]} Bc5 {[%emt 0:00:07]} 9. O-O {[%emt 0:00:08]} O-O {[%emt 0:00:04]} 10. Qh5 {[%emt 0:00:10][%csl Gd3][%cal Rh5h7] [#]} g6 {[%emt 0:00:05]} 11. Qh6 {[%emt 0:00:03]} Re8 {[%emt 0:00:06]} 12. Bg5 {[%emt 0:00:30]} Bf8 {[%emt 0:00:05]} 13. Bxd8 {[%emt 0:01:38]} Bxh6 {[%emt 0:00:05]} 14. Bxc7 {[%emt 0:00:04]} Bf5 {[%emt 0:00:11]} 15. Rad1 {[%emt 0:03:15] Black should prevent Bxf5.} Bxd3 {[%emt 0:06:16]} 16. Rxd3 {[%emt 0:00:09]} ({But not} 16. cxd3 Rac8 17. Bd6 Rxc3 $11) 16... Rac8 {[%emt 0:00:04]} 17. Bd6 {[%emt 0:00:04][%cal Of2f4]} Bf8 {[%emt 0:00:09]} 18. f4 {[%emt 0:05:31]} Rc6 {[%emt 0:08:47]} 19. Bxf8 {[%emt 0:02:48]} Kxf8 $11 {[%emt 0:00:12][%mdl 4096] Endgame. KRR-KRR} 20. Rb1 {[%emt 0:04:58]} b6 {[%emt 0:03:21]} 21. Rb5 {[%emt 0:00:48]} Rc4 {[%emt 0:06:46]} 22. g3 {[%emt 0:01:14]} g5 {[%emt 0:13:57]} 23. Rbxd5 {[%emt 0:06:27]} gxf4 {[%emt 0:00:53] The position is equal.} 24. R5d4 {[%emt 0:00:56]} Rec8 {[%emt 0:03:21]} 25. Rxf4 {[%emt 0:01:53]} (25. gxf4 Rxc3 26. Rd8+ Rxd8 27. Rxd8+ (27. Rxc3 Rd4 $11) 27... Ke7) 25... Ke7 {[%emt 0:00:08]} 26. Rdf3 {[%emt 0:01:00]} Rxf4 {[%emt 0:00:11]} 27. gxf4 {[%emt 0:00:03] KR-KR} Rc4 {[%emt 0:02:38]} 28. Kf2 {[%emt 0:00:06]} Ke6 {[%emt 0:00:25]} 29. Ke2 {[%emt 0:01:54]} b5 {[%emt 0:08:23]} 30. Kd3 {[%emt 0:03:06]} Kf5 {[%emt 0:01:01]} 31. Rh3 {[%emt 0:02:41]} Rxf4 {[%emt 0:00:07]} 32. Rh5+ {[%emt 0:03:57] A balanced but interesting game.   Weighted Error Value: White=0.01 (flawless) /Black=0.02 (flawless) .  OK:         	White=11    	Black=15     Best:        	---       	Black=2} 1/2-1/2

[Event "Baku Open 2024"]
[Site "Baku"]
[Date "2024.07.04"]
[Round "6.6"]
[White "Aditya Mittal"]
[Black "Ibrahimli, Murad"]
[Result "1/2-1/2"]
[ECO "C77"]
[WhiteElo "2595"]
[BlackElo "2400"]
[Annotator "TA"]
[PlyCount "81"]
[EventDate "2024.06.29"]
[EventType "swiss"]
[EventCountry "AZE"]
[SourceTitle "playchess.com"]
[Source "ChessBase"]
[SourceQuality "1"]
[TimeControl "5400+30"]

{[%evp 12,81,23,16,16,18,12,10,30,41,39,31,25,31,39,23,42,34,42,22,29,22,47,40,33,8,24,19,4,0,0,8,12,0,29,22,22,24,28,30,16,-14,-11,-16,0,-14,0,0,-2,-10,0,0,14,18,16,17,11,11,8,8,13,1,15,1,32,1,1,1,1,1,1,1]} 1. e4 {[%emt 0:00:02]} e5 {[%emt 0:06:26]} 2. Nf3 {[%emt 0:00:02]} Nc6 {[%emt 0:00:09]} 3. Bb5 {[%emt 0:00:02][%cal Bf1b5,Bb5a4,Ba4b3][%mdl 32]} a6 {[%emt 0:00:36]} 4. Ba4 {[%emt 0:00:01]} Nf6 {[%emt 0:00:07]} 5. d3 {[%emt 0:00:01]} b5 {[%emt 0:00:39]} 6. Bb3 {[%emt 0:00:01]} Be7 {[%emt 0:01:35]} 7. a4 {[%emt 0:00:02]} b4 {[%emt 0:00:38]} 8. Be3 {[%emt 0:00:16]} d6 {[%emt 0:14:48]} 9. a5 {[%emt 0:01:05]} Be6 {[%emt 0:09:22]} 10. Ba4 {[%emt 0:07:28]} Bd7 {[%emt 0:00:21]} 11. Nbd2 {[%emt 0:01:58]} O-O {[%emt 0:01:43]} 12. c3 {[%emt 0:03:12]} bxc3 {[%emt 0:03:01]} 13. bxc3 {[%emt 0:00:13]} Re8 {[%emt 0:02:48]} 14. O-O {[%emt 0:01:49]} h6 {[%emt 0:02:10]} 15. d4 {[%emt 0:07:57]} exd4 {[%emt 0:14:37]} 16. cxd4 {[%emt 0:06:28]} Bf8 {[%emt 0:00:05]} 17. d5 {[%emt 0:03:41]} Nb4 {[%emt 0:05:34][%cal Oa8b8]} 18. Qb3 {[%emt 0:03:49]} c5 {[%emt 0:08:13]} 19. dxc6 {[%emt 0:02:15]} Nxc6 {[%emt 0:00:04]} 20. Bb6 {[%emt 0:00:28]} Qe7 {[%emt 0:01:12]} 21. Rfe1 {[%emt 0:01:37]} Rec8 {[%emt 0:01:43]} 22. Nh4 {[%emt 0:04:00]} Be6 {[%emt 0:02:56] [#]} 23. Nf5 $1 {[%emt 0:07:13]} Qd7 {[%emt 0:08:52]} 24. Qf3 {[%emt 0:05:01][%cal Of5h6]} Bxf5 {[%emt 0:00:12]} 25. exf5 {[%emt 0:02:51]} d5 $1 {[%emt 0:00:23] Prevents Ne4} 26. Nb3 {[%emt 0:07:58]} Bb4 {[%emt 0:00:36]} 27. Re3 {[%emt 0:13:05]} Qd6 {[%emt 0:01:07]} 28. Qg3 {[%emt 0:03:19] Dodges Ne5} Ne7 {[%emt 0:01:42]} 29. Qxd6 {[%emt 0:03:49]} Bxd6 {[%emt 0:00:13]} 30. Nd4 {[%emt 0:00:41]} Rc4 {[%emt 0:04:21]} 31. Bb3 {[%emt 0:03:08]} Rxd4 {[%emt 0:05:51]} 32. Bxd4 {[%emt 0:02:30] [#] Threatens to win with Rd3.} Nxf5 {[%emt 0:00:05]} 33. Bxf6 {[%emt 0:00:21] A strong pair of Bishops.} (33. Rd3 Nxd4 34. Rxd4 Be5 $17) 33... Nxe3 {[%emt 0:00:05]} 34. fxe3 {[%emt 0:00:44]} gxf6 {[%emt 0:00:04]} 35. Bxd5 $11 {[%emt 0:00:03][%mdl 4096] Endgame. KRB-KRB} Ra7 {[%emt 0:00:09]} 36. Rb1 {[%emt 0:02:44]} Kg7 {[%emt 0:00:58]} 37. Kf2 {[%emt 0:02:10]} Be5 {[%emt 0:00:06][%cal Oa7c7]} 38. Rb6 {[%emt 0:01:02]} Bc3 {[%emt 0:00:07] The position is equal.} 39. Rb7 {[%emt 0:00:26]} Rxb7 {[%emt 0:00:05]} 40. Bxb7 {[%emt 0:00:02]} Bxa5 {[%emt 0:00:06]} 41. Bxa6 {[%emt 0:00:03] Weighted Error Value: White=0.06 (flawless) /Black=0.06 (flawless) .  Inaccurate:     	White=2     	Black=2      OK:         	White=10    	Black=14     Best:        	White=2     	Black=1      Strong:       	---       	Black=1} 1/2-1/2

[Event "Baku Open 2024"]
[Site "Baku"]
[Date "2024.07.04"]
[Round "6.7"]
[White "Muradli, Mahammad"]
[Black "Yeletsky, Ivan"]
[Result "1-0"]
[ECO "D11"]
[WhiteElo "2575"]
[BlackElo "2498"]
[Annotator "TA"]
[PlyCount "87"]
[EventDate "2024.06.29"]
[EventType "swiss"]
[EventCountry "AZE"]
[SourceTitle "playchess.com"]
[Source "ChessBase"]
[SourceQuality "1"]
[TimeControl "5400+30"]

{[%evp 15,87,19,25,20,30,17,25,35,43,47,42,34,22,25,21,41,49,45,36,37,62,20,31,24,14,0,0,0,0,0,0,0,0,0,0,0,0,-12,-13,-48,-59,-57,-56,-58,-60,-60,-39,-48,-41,-79,-93,-90,-86,-93,-84,-85,-70,-117,-118,-147,-147,-175,-177,-166,-120,-118,-118,-100,-111,-267,250,219,29987,29988]} 1. d4 {[%emt 0:06:48]} d5 {[%emt 0:00:49]} 2. c4 {[%emt 0:00:17]} c6 {[%emt 0:00:25]} 3. Nf3 {[%emt 0:00:10]} Nf6 {[%emt 0:00:32]} 4. Qb3 {[%emt 0:00:12]} e6 {[%emt 0:01:36]} 5. Bg5 {[%emt 0:00:26]} Be7 {[%emt 0:04:33]} 6. e3 {[%emt 0:00:32] D11: Slav Defence: 3 Nf3 sidelines and 3...Nf6 4 e3 Bg4.} h6 {[%emt 0:00:26]} 7. Bf4 $146 {[%emt 0:02:38]} ({Predecessor:} 7. Bh4 O-O 8. Bd3 Nbd7 9. cxd5 Nxd5 10. Bxe7 Nxe7 11. Qa3 b6 12. Nbd2 Bb7 13. O-O {½-½ Romanov,E (2588)-Kazhgaleyev,M (2643) Chigorin Memorial 17th 2009 (4)}) 7... a5 {[%emt 0:07:00]} 8. a3 {[%emt 0:04:21]} O-O {[%emt 0:00:30]} 9. Nc3 {[%emt 0:02:06]} Nbd7 {[%emt 0:00:35]} 10. Be2 {[%emt 0:07:06]} dxc4 {[%emt 0:02:11]} 11. Qxc4 {[%emt 0:00:27]} Nd5 {[%emt 0:05:13]} 12. Bg3 {[%emt 0:02:32]} Qb6 {[%emt 0:06:00]} 13. Rb1 {[%emt 0:04:44]} Nxc3 {[%emt 0:00:57]} 14. Qxc3 {[%emt 0:03:44]} Nf6 {[%emt 0:00:13]} 15. Rc1 {[%emt 0:03:31]} Ne4 {[%emt 0:03:22]} 16. Qc2 {[%emt 0:00:07]} Nxg3 {[%emt 0:00:10]} 17. hxg3 {[%emt 0:00:02]} a4 {[%emt 0:07:03]} 18. O-O {[%emt 0:04:30]} Bd7 {[%emt 0:00:31]} 19. Ne5 {[%emt 0:03:13]} Rfd8 {[%emt 0:00:33]} 20. Nd3 {[%emt 0:09:19]} Be8 {[%emt 0:02:28]} 21. Rfd1 {[%emt 0:06:53]} Qa7 {[%emt 0:05:21]} 22. Bf3 {[%emt 0:02:19]} Rac8 {[%emt 0:09:51]} 23. Nc5 {[%emt 0:07:39]} Ra8 {[%emt 0:00:14]} 24. Nd3 {[%emt 0:16:32]} Rac8 {[%emt 0:00:10]} 25. Nc5 {[%emt 0:00:31]} Ra8 {[%emt 0:02:11]} 26. Qe4 {[%emt 0:00:07]} b6 {[%emt 0:06:14]} 27. Nxe6 {[%emt 0:00:42]} fxe6 {[%emt 0:00:10]} 28. Qxe6+ {[%emt 0:00:02]} Bf7 {[%emt 0:03:30]} 29. Qxc6 {[%emt 0:00:13]} Rab8 {[%emt 0:01:11]} 30. Qb5 {[%emt 0:04:47]} Bb3 {[%emt 0:04:48]} 31. Rd3 {[%emt 0:00:20]} Qa5 {[%emt 0:01:13]} 32. Rxb3 {[%emt 0:02:39]} axb3 {[%emt 0:00:14]} 33. Qxb3+ {[%emt 0:00:01]} Kh8 {[%emt 0:00:18]} 34. Qe6 {[%emt 0:00:52]} Qg5 {[%emt 0:09:10]} 35. Rc6 {[%emt 0:01:23]} b5 {[%emt 0:00:56]} 36. b4 {[%emt 0:00:28]} (36. Qe4 $15 b4 37. axb4 (37. Rg6 bxa3 38. Rxg5 axb2 $19) 37... Bxb4 (37... Rxb4 $2 38. Rg6 $18) 38. Rg6) 36... Re8 $17 {[%emt 0:05:16]} 37. Qb3 {[%emt 0:02:56]} Rec8 {[%emt 0:02:15]} 38. Re6 {[%emt 0:03:16]} Rc1+ {[%emt 0:02:49]} 39. Kh2 {[%emt 0:00:02]} Bf6 {[%emt 0:02:54]} (39... Rd8 $19 {...Bd6 would now be deadly.} 40. Re5 Qf6) 40. Qd3 $17 {[%emt 0:00:22]} Rf8 {[%emt 0:02:57]} 41. Rb6 {[%emt 0:01:18]} Ra1 {[%emt 0:01:55]} 42. Rd6 $2 {[%emt 0:00:51] [#]} (42. Be2 $17 Be7 43. f4) 42... Be5 $4 {[%emt 0:00:55][%mdl 8192]} (42... Rc8 $1 $19 {[%mdl 512] and all is fine. ( -> ...Rcc1)} 43. Qe4 (43. Rd5 {leads to mate.} Rcc1) 43... g6 (43... Rxa3 $2 {loses.} 44. Rd5 $18)) 43. dxe5 $18 {[%emt 0:00:26]} Rxf3 $2 {[%emt 0:00:10]} (43... Qxe5 $18 44. Rd4 Ra2) 44. Rd8+ {[%emt 0:00:07]} 1-0

[Event "Baku Open 2024"]
[Site "Baku"]
[Date "2024.07.04"]
[Round "6.8"]
[White "Gokerkan, Cem Kaan"]
[Black "Zverev, Lev"]
[Result "0-1"]
[ECO "C54"]
[WhiteElo "2512"]
[BlackElo "2416"]
[Annotator "TA"]
[PlyCount "74"]
[EventDate "2024.06.29"]
[EventType "swiss"]
[EventCountry "AZE"]
[SourceTitle "playchess.com"]
[Source "ChessBase"]
[SourceQuality "1"]
[TimeControl "5400+30"]

{[%evp 17,74,0,10,11,12,15,0,0,0,0,0,0,0,0,6,0,20,33,31,23,25,0,0,0,0,0,0,0,0,-10,-10,-9,-18,-14,-11,-43,-46,-60,-31,-18,-12,0,0,-81,-78,-95,-94,-94,-98,-98,-8,-8,0,-29984,-29985,-29985,-29986,-29997,-29998]} 1. e4 {[%emt 0:02:09]} e5 {[%emt 0:04:53]} 2. Nf3 {[%emt 0:00:02]} Nc6 {[%emt 0:00:03]} 3. Bc4 {[%emt 0:00:06]} Bc5 {[%emt 0:00:34]} 4. c3 {[%emt 0:00:10]} Nf6 {[%emt 0:00:07]} 5. d4 {[%emt 0:00:05]} exd4 {[%emt 0:00:05]} 6. e5 {[%emt 0:00:03]} d5 {[%emt 0:00:12]} 7. Bb5 {[%emt 0:00:06]} Ne4 {[%emt 0:01:52]} 8. cxd4 {[%emt 0:00:04]} Bb6 {[%emt 0:00:24]} 9. Nc3 {[%emt 0:00:07]} O-O {[%emt 0:00:43]} 10. Be3 {[%emt 0:00:11]} Bg4 {[%emt 0:01:15]} 11. h3 {[%emt 0:00:18]} Bh5 {[%emt 0:00:40]} 12. Qc2 {[%emt 0:00:07] The position is equal.} Nxc3 {[%emt 0:03:12]} 13. bxc3 {[%emt 0:00:41]} f6 {[%emt 0:05:06]} 14. exf6 {[%emt 0:01:07]} Qxf6 {[%emt 0:00:30]} 15. Be2 {[%emt 0:00:14]} Rae8 {[%emt 0:04:46]} 16. O-O {[%emt 0:00:48]} Ne7 {[%emt 0:04:56]} 17. Ne5 {[%emt 0:09:51]} Bxe2 {[%emt 0:01:37]} 18. Qxe2 {[%emt 0:00:02]} Qe6 {[%emt 0:01:36] Dodges Nd7} 19. g4 {[%emt 0:10:58]} c5 {[%emt 0:12:06]} 20. f4 {[%emt 0:02:35]} cxd4 {[%emt 0:00:36]} 21. cxd4 {[%emt 0:00:17]} Nc6 {[%emt 0:00:12] Threatening ...g5.} 22. Rad1 {[%emt 0:34:43]} g5 {[%emt 0:06:30] With the idea ...gxf4.} 23. f5 {[%emt 0:01:43]} (23. fxg5 Nxe5 (23... Rxf1+ $2 24. Kxf1 Nxe5 25. Bf2 $19) 24. Rxf8+ Rxf8 $19) 23... Qd6 {[%emt 0:02:43]} 24. Qf2 {[%emt 0:03:59] [#]} Nxd4 $1 {[%emt 0:04:56]} 25. Bxd4 {[%emt 0:05:35]} Bxd4 {[%emt 0:00:08]} 26. Rxd4 {[%emt 0:02:11]} Rxe5 {[%emt 0:00:32]} (26... Qxe5 $6 27. Rfd1 $14) 27. h4 {[%emt 0:00:29]} Qf6 {[%emt 0:21:27]} (27... gxh4 {is more complex.} 28. Qxh4 Qb6 29. Rfd1 Re2) 28. Qd2 {[%emt 0:05:20]} gxh4 {[%emt 0:06:29]} 29. Rxd5 {[%emt 0:00:01]} Re4 {[%emt 0:01:55]} 30. Qg2 {[%emt 0:07:58]} (30. Rf4 $1 $11 {keeps the balance.} Qa1+ 31. Kg2) 30... Rfe8 $17 {[%emt 0:04:00] ...Re2 would now be deadly.} 31. g5 {[%emt 0:01:53]} Qb6+ {[%emt 0:00:06]} 32. Kh1 {[%emt 0:00:26] [#] Black must now prevent f6.} Re2 $1 {[%emt 0:00:34]} 33. f6 {[%emt 0:02:55] f7+ would kill now.} Kf8 {[%emt 0:04:30] Chess con chili. Black is more active.} (33... Rxg2 $17 34. f7+ Kf8 35. fxe8=Q+ Kxe8 36. Kxg2 Qe3) 34. Qh3 $11 {[%emt 0:06:08] White wants to mate with Qa3+.} Rf2 {[%emt 0:03:04]} 35. Rf5 $2 {[%emt 0:02:55][%mdl 8192]} (35. Rxf2 $11 Qxf2 36. Qa3+ (36. Rd1 Re1+ 37. Rxe1 Qxe1+ 38. Kg2 Qe2+ 39. Kg1 Qd1+ 40. Kg2 Qc2+ 41. Kf3 Qc4 $11) 36... Kg8 37. Rd1) 35... Qc6+ {[%emt 0:02:29] Black mates.} 36. Kg1 {[%emt 0:00:01] [#]} Re3 $3 {[%emt 0:00:16][%mdl 512]} 37. Qh1 {[%emt 0:00:54]} (37. Qg4 Rg3+) 37... Rg3+ {[%emt 0:00:09] Weighted Error Value: White=0.29 (precise) /Black=0.07 (flawless) .  Loses game:     	White=1     	---        Mistake:       	White=1     	Black=1      Inaccurate:     	White=1     	Black=1      OK:         	White=7     	Black=13     Best:        	White=3     	---        Strong:       	---       	Black=1} 0-1